fUSD/lending_fUSD_20250511
["ID","MTS","AMOUNT","RATE_DAILY","PERIOD"]
[360749640,1746967674537,1412.0,0.000149,5]
[360749641,1746967685303,-172.40610424,0.000149,2]
[360749642,1746967700492,-172.40610424,0.000149,2]
[360749654,1746967708608,7851.87749356,0.00015,7]
[360749655,1746967708632,25399.04228566,0.00015,7]
[360749656,1746967715205,-215.95880197,0.00014899,2]
[360749657,1746967716024,-215.95880197,0.00014899,2]
[360749660,1746967730237,-150.72468651,0.00014899,2]
[360749661,1746967730268,-97.02593151,0.00014899,2]
[360749662,1746967745316,-169.75961356,0.00014824,2]
[360749663,1746967746067,-328.06275344,0.00014824,2]
[360749664,1746967746364,-402.97406849,0.00014899,2]
[360749665,1746967746394,-500.0,0.00014899,2]
[360749666,1746967746423,-500.0,0.00014899,2]
[360749667,1746967746450,-500.0,0.00014899,2]
[360749668,1746967746476,-500.0,0.00014899,2]
[360749669,1746967746502,-500.0,0.00014899,2]
[360749670,1746967746528,-500.0,0.00014899,2]
[360749671,1746967746554,-500.0,0.00014899,2]
[360749672,1746967746580,-500.0,0.00014899,2]
[360749673,1746967746606,-500.0,0.00014899,2]
[360749674,1746967746632,-500.0,0.00014899,2]
[360749675,1746967746659,-500.0,0.00014899,2]
[360749676,1746967746685,-500.0,0.00014899,2]
[360749677,1746967746712,-500.0,0.00014899,2]
[360749678,1746967746737,-500.0,0.00014899,2]
[360749679,1746967746762,-500.0,0.00014899,2]
[360749680,1746967746793,-500.0,0.00014899,2]
[360749681,1746967746821,-500.0,0.00014899,2]
[360749682,1746967746849,-500.0,0.00014899,2]
[360749683,1746967746877,-500.0,0.00014899,2]
[360749684,1746967746907,-500.0,0.00014899,2]
[360749685,1746967746937,-500.0,0.00014899,2]
[360749686,1746967746965,-500.0,0.00014899,2]
[360749687,1746967746993,-500.0,0.00014899,2]
[360749688,1746967747020,-500.0,0.00014899,2]
[360749689,1746967747048,-500.0,0.00014899,2]
[360749690,1746967747075,-500.0,0.00014899,2]
[360749691,1746967747102,-500.0,0.00014899,2]
[360749692,1746967747130,-500.0,0.00014899,2]
[360749693,1746967747158,-500.0,0.00014899,2]
[360749694,1746967747189,-500.0,0.00014899,2]
[360749695,1746967747209,-9050.0370584,0.00014899,2]
[360749696,1746967747230,-342.43227931,0.000149,2]
[360749697,1746967747251,-2184.71030036,0.000149,2]
[360749698,1746967747677,-37.63987176,0.000149,2]
[360749699,1746967747700,-32131.15216824,0.000149,2]
[360749703,1746967759156,-55156.90340899,0.000149,2]
[360749704,1746967759183,-11514.28313101,0.000149,2]
[360749705,1746967760315,-231.30280941,0.000149,2]
[360749706,1746967761156,-56992.69166769,0.000149,2]
[360749707,1746967761181,-190.0,0.00014959,2]
[360749708,1746967761201,-500.0,0.00014973,2]
[360749709,1746967761222,-500.0,0.00014973,2]
[360749710,1746967761242,-500.0,0.00014973,2]
[360749711,1746967761262,-500.61411979,0.00014973,2]
[360749712,1746967761282,-500.0,0.00014973,2]
[360749713,1746967761304,-501.6822209,0.00014973,2]
[360749714,1746967761324,-500.0,0.00014973,2]
[360749715,1746967761344,-550.14715315,0.00014973,2]
[360749716,1746967761364,-500.0,0.00014973,2]
[360749717,1746967761384,-500.0,0.00014973,2]
[360749718,1746967761405,-612.64823099,0.00014973,2]
[360749719,1746967761426,-500.0,0.00014973,2]
[360749720,1746967761445,-150.0,0.00014999,2]
[360749721,1746967761465,-300.0,0.00014999,2]
[360749722,1746967761486,-384165.66540748,0.00015,2]
[360749723,1746967771098,-461.23858167,0.000149,2]
[360749724,1746967771120,-302701.27141833,0.00015,2]
[360749725,1746967774115,-4836.353606,0.00015,2]
[360749726,1746967775209,-381.71971259,0.00015,2]
[360749729,1746967790281,-215.17592551,0.000149,2]
[360749730,1746967790303,-2.04193893,0.00014999,2]
[360749737,1746967805837,-191.78213556,0.00014973,2]
[360749738,1746967820277,-159.0,0.000149,2]
[360749739,1746967831550,-420.68212066,0.000149,2]
[360749740,1746967831606,-1856.34571312,0.000149,2]
[360749741,1746967831620,-6790.56967011,0.000149,2]
[360749742,1746967831636,-4444.70034424,0.000149,2]
[360749743,1746967831646,-300.0,0.00014972,2]
[360749744,1746967831655,-308.21786444,0.00014973,2]
[360749745,1746967831666,-500.0,0.00014973,2]
[360749746,1746967831675,-672.36309483,0.0001499,2]
[360749747,1746967831685,-672.36309483,0.0001499,2]
[360749748,1746967831694,-672.36309483,0.0001499,2]
[360749749,1746967831704,-1200.0,0.00014998,2]
[360749750,1746967831714,-147.95806107,0.00014999,2]
[360749751,1746967831724,-150.0,0.00014999,2]
[360749752,1746967831734,-150.0,0.00014999,2]
[360749753,1746967831744,-150.0,0.00014999,2]
[360749754,1746967831754,-150.0,0.00014999,2]
[360749755,1746967831763,-150.0,0.00014999,2]
[360749756,1746967831773,-150.0,0.00014999,2]
[360749757,1746967831782,-150.0,0.00014999,2]
[360749758,1746967831792,-150.0,0.00014999,2]
[360749759,1746967831802,-150.0,0.00014999,2]
[360749760,1746967831812,-150.0,0.00014999,2]
[360749761,1746967831821,-150.0,0.00014999,2]
[360749762,1746967831831,-150.0,0.00014999,2]
[360749763,1746967831840,-150.0,0.00014999,2]
[360749764,1746967831849,-150.0,0.00014999,2]
[360749765,1746967831859,-150.0,0.00014999,2]
[360749766,1746967831868,-150.0,0.00014999,2]
[360749767,1746967831879,-175.23980206,0.00014999,2]
[360749768,1746967831888,-5609.20211947,0.00015,2]
[360749769,1746967831925,-1505.11732357,0.00015,2]
[360749770,1746967831964,-62344.07992304,0.00015,2]
[360749771,1746967831990,-135849.29671505,0.00015,2]
[360749772,1746967832096,-250068.63086567,0.00015,2]
[360749773,1746967832108,-400768.40690859,0.00015,2]
[360749851,1746967835731,-409.69719059,0.00015,2]
[360749852,1746967837480,-457.78,0.00015,2]
[360749853,1746967837535,-656.11999672,0.00015,2]
[360749854,1746967837644,-741.54000082,0.00015,2]
[360749855,1746967837656,-412.33,0.00015,2]
[360749924,1746967839330,-281.30280941,0.00015,2]
[360749925,1746967839663,-5400480.63662668,0.00015,2]
[360749926,1746967839773,-3226.51497736,0.00015,2]
[360749927,1746967839786,-3569.58747616,0.00015,2]
[360749928,1746967839798,-6427.42647658,0.00015,2]
[360749929,1746967839935,-3699.979966,0.00015,2]
[360749930,1746967840046,-470.493024,0.00015,2]
[360749931,1746967840115,-539.06105198,0.00015,2]
[360749960,1746967844681,-166.56928443,0.000149,2]
[360749962,1746967844691,-9224.95908286,0.000149,2]
[360749964,1746967844701,-34193.58065914,0.00015,2]
[360749975,1746967844796,-2127.5000002,0.00015,2]
[360749978,1746967844808,-1531940.25677456,0.00015,2]
[360750010,1746967845452,-12576.56614922,0.00015,2]
[360750012,1746967845464,-10948.5134584,0.00015,2]
[360750015,1746967845517,-20102.9648736,0.00015,2]
[360750016,1746967845528,-594.34999,0.00015,2]
[360750019,1746967846036,-866.23005724,0.00015,2]
[360750022,1746967846062,-356.79000028,0.00015,2]
[360750024,1746967850744,-395.21152637,0.00015,2]
[360750025,1746967865226,-159.0,0.00014999,2]
[360750026,1746967865252,-42.17678277,0.00014999,2]
[360750027,1746967865730,-107.82321723,0.00014999,2]
[360750028,1746967865761,-93.35356554,0.00014999,2]
[360750029,1746967880259,-315.5713177,0.000149,2]
[360750030,1746967895220,-280.81699144,0.000149,2]
[360750032,1746967910286,-357.62356073,0.000149,2]
[360750033,1746967925726,-160.46,0.000149,2]
[360750034,1746967940895,-251.79378616,0.000149,2]
[360750035,1746967955218,-230.12265311,0.000149,2]
[360750036,1746967970276,-221.69235487,0.000149,2]
[360750037,1746967985255,-385.73694372,0.000149,2]
[360750038,1746968000286,-214.24183446,0.000149,2]
[360750039,1746968015255,-166.4352942,0.000149,2]
[360750040,1746968030324,-158.71095394,0.000149,2]
[360750041,1746968045198,-158.71095394,0.000149,2]
[360750042,1746968060408,-273.17943571,0.000149,2]
[360750043,1746968060435,-51.54485637,0.000149,2]
[360750044,1746968075304,-218.51150915,0.00014825,2]
[360750045,1746968090295,-423.63469085,0.00014825,2]
[360750046,1746968090323,-17.12893827,0.000149,2]
[360750047,1746968105373,-300.0,0.000149,2]
[360750048,1746968107582,-300.0,0.000149,2]
[360750049,1746968120901,-292.79435202,0.000149,2]
[360750050,1746968135290,-151.0,0.000149,2]
[360750051,1746968150309,-298.05223378,0.00014825,2]
[360750052,1746968165255,-301.46786954,0.00014825,2]
[360750053,1746968180227,-231.74989668,0.00014825,2]
[360750054,1746968195767,-120.79949,0.00014825,2]
[360750055,1746968195791,-31.05167274,0.00014863,2]
[360750056,1746968210304,-196.55355446,0.00014863,2]
[360750057,1746968226353,-180.01,0.00014788,2]
[360750058,1746968238375,155.5,0.00013699,2]
[360750059,1746968240208,-161.19,0.00014788,2]
[360750060,1746968255256,-7.204718,0.00014788,2]
[360750061,1746968255278,-22.3947728,0.00014863,2]
[360750062,1746968255301,-300.0,0.00014899,2]
[360750063,1746968255324,-2.297659,0.000149,2]
[360750064,1746968270350,-278.533951,0.000149,2]
[360750065,1746968285880,-250.51791125,0.000149,2]
[360750066,1746968300207,-167.01194084,0.00014825,2]
[360750067,1746968315451,-173.65706895,0.000147,2]
[360750068,1746968316000,-173.65706895,0.000147,2]
[360750069,1746968331951,-157.58888017,0.000147,2]
[360750070,1746968345773,-258.41018952,0.000147,2]
[360750071,1746968346392,-258.41018952,0.000147,2]
[360750072,1746968360827,-180.42684345,0.000147,2]
[360750073,1746968375569,-250.0,0.000147,2]
[360750074,1746968390235,-222.72639583,0.00014626,2]
[360750075,1746968405269,-200.0,0.00014626,2]
[360750076,1746968405766,-200.0,0.00014626,2]
[360750077,1746968420223,-264.25081543,0.00014626,2]
[360750078,1746968435261,-269.18136954,0.00014626,2]
[360750079,1746968451432,-152.0,0.000147,2]
[360750080,1746968465894,-483.03454528,0.000147,2]
[360750081,1746968481269,-170.39504816,0.000147,2]
[360750082,1746968495308,-247.15644824,0.000147,2]
[360750083,1746968510274,-228.19355176,0.000147,2]
[360750084,1746968525307,-250.0,0.000147,2]
[360750085,1746968540227,-200.0,0.0001455,2]
[360750086,1746968555302,-305.42959344,0.0001455,2]
[360750087,1746968555325,-208.76492605,0.000146,2]
[360750088,1746968555347,-40.51254076,0.000147,2]
[360750089,1746968570247,-200.0,0.00014581,2]
[360750090,1746968571022,-200.0,0.00014581,2]
[360750091,1746968581872,223.84,0.00028,120]
[360750092,1746968585290,-336.363,0.00014507,2]
[360750093,1746968585801,-52.607,0.00014507,2]
[360750094,1746968585824,-283.756,0.00014511,2]
[360750095,1746968590493,161.6,0.00013772,2]
[360750096,1746968600243,-199.56662921,0.00014507,2]
[360750097,1746968604303,923.11,0.00013764,2]
[360750098,1746968615900,-159.00887079,0.00014507,2]
[360750099,1746968617559,1030.0,0.00028,120]
[360750100,1746968622944,1060.92,0.00013764,2]
[360750101,1746968629382,-401.900164,0.00014507,2]
[360750102,1746968629419,-105.214,0.00014511,2]
[360750103,1746968629458,-388.97,0.00014514,2]
[360750104,1746968629495,-388.97,0.00014518,2]
[360750105,1746968629535,-388.97,0.00014522,2]
[360750106,1746968629570,-388.97,0.00014526,2]
[360750107,1746968629608,-388.97,0.0001453,2]
[360750108,1746968629646,-388.97,0.00014533,2]
[360750109,1746968629683,-388.97,0.00014537,2]
[360750110,1746968629721,-388.97,0.00014541,2]
[360750111,1746968629758,-388.97,0.00014545,2]
[360750112,1746968629791,-388.97,0.00014549,2]
[360750113,1746968629817,-388.97,0.00014552,2]
[360750114,1746968629842,-388.97,0.00014556,2]
[360750115,1746968629868,-388.97,0.0001456,2]
[360750116,1746968629893,-388.97,0.00014564,2]
[360750117,1746968630391,-388.97,0.00014568,2]
[360750118,1746968630439,-388.97,0.00014572,2]
[360750119,1746968630464,-388.97,0.00014575,2]
[360750120,1746968630488,-388.97,0.00014579,2]
[360750121,1746968630514,-618.75,0.00014581,2]
[360750122,1746968630540,-1634.68262524,0.000147,2]
[360750123,1746968630565,-257.441,0.000147,2]
[360750124,1746968630594,-208.76492604,0.00014798,2]
[360750125,1746968630624,-181.12416242,0.00014799,2]
[360750126,1746968630650,-150.0,0.00014848,2]
[360750127,1746968630675,-500.0,0.00014849,2]
[360750128,1746968630707,-500.0,0.00014849,2]
[360750129,1746968630733,-500.0,0.00014849,2]
[360750130,1746968630764,-500.0,0.00014849,2]
[360750131,1746968630789,-531.49714168,0.00014849,2]
[360750132,1746968630814,-500.0,0.00014849,2]
[360750133,1746968630845,-500.0,0.00014849,2]
[360750134,1746968630874,-500.0,0.00014849,2]
[360750135,1746968630898,-500.0,0.00014849,2]
[360750136,1746968630929,-500.0,0.00014849,2]
[360750137,1746968630954,-500.0,0.00014849,2]
[360750138,1746968630984,-500.0,0.00014849,2]
[360750139,1746968631009,-500.0,0.00014849,2]
[360750140,1746968631038,-500.0,0.00014849,2]
[360750141,1746968631067,-500.0,0.00014849,2]
[360750142,1746968631097,-500.0,0.00014849,2]
[360750143,1746968631126,-500.0,0.00014849,2]
[360750144,1746968631155,-500.0,0.00014849,2]
[360750145,1746968631188,-500.0,0.00014849,2]
[360750146,1746968631218,-500.0,0.00014849,2]
[360750147,1746968631254,-500.0,0.00014849,2]
[360750148,1746968631286,-500.0,0.00014849,2]
[360750149,1746968631318,-500.0,0.00014849,2]
[360750150,1746968631347,-500.0,0.00014849,2]
[360750151,1746968631376,-500.0,0.00014849,2]
[360750152,1746968631406,-500.0,0.00014849,2]
[360750153,1746968631437,-500.0,0.00014849,2]
[360750154,1746968631468,-500.0,0.00014849,2]
[360750155,1746968631498,-500.0,0.00014849,2]
[360750156,1746968631529,-500.0,0.00014849,2]
[360750157,1746968631559,-500.0,0.00014849,2]
[360750158,1746968631590,-500.0,0.00014849,2]
[360750159,1746968631622,-500.0,0.00014849,2]
[360750160,1746968631652,-164.31045548,0.00014849,2]
[360750161,1746968631682,-500.0,0.00014849,2]
[360750162,1746968631712,-500.0,0.00014849,2]
[360750163,1746968631743,-500.0,0.00014849,2]
[360750164,1746968631773,-500.0,0.00014849,2]
[360750165,1746968631803,-500.0,0.00014849,2]
[360750166,1746968631835,-500.0,0.00014849,2]
[360750167,1746968631863,-500.0,0.00014849,2]
[360750168,1746968631892,-500.0,0.00014849,2]
[360750169,1746968631921,-500.0,0.00014849,2]
[360750170,1746968631951,-500.0,0.00014849,2]
[360750171,1746968631981,-500.0,0.00014849,2]
[360750172,1746968632011,-500.0,0.00014849,2]
[360750173,1746968632041,-500.0,0.00014849,2]
[360750174,1746968632070,-500.0,0.00014849,2]
[360750175,1746968632100,-500.0,0.00014849,2]
[360750176,1746968632130,-500.0,0.00014849,2]
[360750177,1746968632160,-500.0,0.00014849,2]
[360750178,1746968632190,-500.0,0.00014849,2]
[360750179,1746968632220,-500.0,0.00014849,2]
[360750180,1746968632250,-500.0,0.00014849,2]
[360750181,1746968632279,-500.0,0.00014849,2]
[360750182,1746968632307,-500.0,0.00014849,2]
[360750183,1746968632338,-500.0,0.00014849,2]
[360750184,1746968632368,-500.0,0.00014849,2]
[360750185,1746968632399,-500.0,0.00014849,2]
[360750186,1746968632429,-500.0,0.00014849,2]
[360750187,1746968632459,-214.99999999,0.00014849,2]
[360750188,1746968632490,-500.0,0.00014849,2]
[360750189,1746968632521,-500.0,0.00014849,2]
[360750190,1746968632550,-500.0,0.00014849,2]
[360750191,1746968632581,-500.0,0.00014849,2]
[360750192,1746968632613,-500.0,0.00014849,2]
[360750193,1746968632645,-500.0,0.00014849,2]
[360750194,1746968632820,-500.0,0.00014849,2]
[360750195,1746968632854,-500.0,0.00014849,2]
[360750196,1746968632884,-500.0,0.00014849,2]
[360750197,1746968632914,-500.0,0.00014849,2]
[360750198,1746968632945,-571.5,0.00014849,2]
[360750199,1746968632976,-500.0,0.00014849,2]
[360750200,1746968633006,-500.0,0.00014849,2]
[360750201,1746968633036,-500.0,0.00014849,2]
[360750202,1746968633062,-181.1241624,0.0001485,2]
[360750203,1746968633088,-39977.23136275,0.0001485,2]
[360750204,1746968633270,-200.0,0.0001485,2]
[360750205,1746968633425,-200.0,0.0001485,2]
[360750206,1746968645358,-304.46608424,0.0001485,2]
[360750207,1746968660844,-192.11888246,0.000148,2]
[360750208,1746968661335,-192.11888246,0.000148,2]
[360750209,1746968675304,-234.96111754,0.00014725,2]
[360750210,1746968690251,-291.6019428,0.00014725,2]
[360750211,1746968705846,-291.6019428,0.00014725,2]
[360750212,1746968717608,-283.65811486,0.00014725,2]
[360750213,1746968717635,-292.02557025,0.000148,2]
[360750214,1746968717667,-300.0,0.00014848,2]
[360750215,1746968717692,-1200.0,0.00014848,2]
[360750216,1746968717726,-500.0,0.00014849,2]
[360750217,1746968717757,-500.0,0.00014849,2]
[360750218,1746968717788,-500.0,0.00014849,2]
[360750219,1746968717818,-500.0,0.00014849,2]
[360750220,1746968717850,-500.0,0.00014849,2]
[360750221,1746968717880,-500.0,0.00014849,2]
[360750222,1746968717911,-500.0,0.00014849,2]
[360750223,1746968717944,-500.0,0.00014849,2]
[360750224,1746968717974,-500.0,0.00014849,2]
[360750225,1746968718007,-571.5,0.00014849,2]
[360750226,1746968718039,-2072.47760663,0.00014849,2]
[360750227,1746968718073,-2072.47760663,0.00014849,2]
[360750228,1746968718106,-2072.47760663,0.00014849,2]
[360750229,1746968718138,-2072.47760663,0.00014849,2]
[360750230,1746968718171,-2072.47760663,0.00014849,2]
[360750231,1746968718204,-2072.47760663,0.00014849,2]
[360750232,1746968718237,-2072.47760663,0.00014849,2]
[360750233,1746968718271,-2072.47760663,0.00014849,2]
[360750234,1746968718303,-2072.47760663,0.00014849,2]
[360750235,1746968718335,-2072.47760663,0.00014849,2]
[360750236,1746968718371,-2072.47760663,0.00014849,2]
[360750237,1746968718403,-2072.47760663,0.00014849,2]
[360750238,1746968718434,-2072.47760662,0.00014849,2]
[360750239,1746968718458,-65910.60742871,0.0001485,2]
[360750240,1746968720196,-153.4,0.0001485,2]
[360750241,1746968723770,170.09,0.00013112,2]
[360750242,1746968735896,-210.38286842,0.0001485,2]
[360750243,1746968748006,150.0,0.00013488,2]
[360750244,1746968748048,150.0,0.00013522,2]
[360750245,1746968748095,150.0,0.00013556,2]
[360750246,1746968748127,150.0,0.0001359,2]
[360750247,1746968748185,150.0,0.00013624,2]
[360750248,1746968748265,150.0,0.00013658,2]
[360750249,1746968748328,150.0,0.00013692,2]
[360750250,1746968748407,150.0,0.00013726,2]
[360750251,1746968748472,150.0,0.0001376,2]
[360750252,1746968748546,150.0,0.00013794,2]
[360750253,1746968748615,150.0,0.00013828,2]
[360750254,1746968748684,150.0,0.00013862,2]
[360750255,1746968748754,150.0,0.00013896,2]
[360750256,1746968748820,150.0,0.0001393,2]
[360750257,1746968748894,150.0,0.00013965,2]
[360750258,1746968748965,150.0,0.00013999,2]
[360750259,1746968750476,-150.0,0.00014033,2]
[360750260,1746968750499,-9.969241,0.00014067,2]
[360750262,1746968765205,-140.030759,0.00014067,2]
[360750263,1746968765229,-11.969241,0.00014101,2]
[360750264,1746968780253,-138.030759,0.00014101,2]
[360750265,1746968780276,-111.969241,0.00014135,2]
[360750266,1746968795219,-38.030759,0.00014135,2]
[360750267,1746968795243,-150.0,0.00014169,2]
[360750268,1746968795266,-150.0,0.00014203,2]
[360750269,1746968795288,-47.01380779,0.00014237,2]
[360750270,1746968800005,150.0,0.000185,5]
[360750271,1746968803363,2128.78,0.00013848,2]
[360750272,1746968810795,-152.29118431,0.00013848,2]
[360750273,1746968825510,-299.70881569,0.00013848,2]
[360750274,1746968836251,-948.869535,0.00013773,2]
[360750275,1746968836273,-834.05253297,0.00013843,2]
[360750276,1746968840903,-422.61577241,0.00013843,2]
[360750277,1746968843108,-1205.23492764,0.00013843,2]
[360750278,1746968848080,-230.1560742,0.00013843,2]
[360750279,1746968855244,-327.333586,0.00013843,2]
[360750280,1746968871473,-596.8364341,0.00013819,2]
[360750281,1746968872042,-38.2035659,0.00013819,2]
[360750282,1746968872065,-558.6328682,0.00013843,2]
[360750283,1746968885222,-167.01194082,0.00013748,2]
[360750284,1746968885245,-190.21,0.00013789,2]
[360750285,1746968885268,-32.88526255,0.00013843,2]
[360750286,1746968900262,-195.6,0.00013789,2]
[360750287,1746968915204,-188.44163347,0.00013789,2]
[360750288,1746968930273,-217.99600651,0.00013789,2]
[360750292,1746968945205,-316.43574089,0.00013789,2]
[360750293,1746968949091,-3276.69321,0.00013789,2]
[360750294,1746968952271,-20.47340913,0.00013789,2]
[360750295,1746968952298,-500.0,0.00013842,2]
[360750296,1746968952319,-392.3885713,0.00013842,2]
[360750297,1746968952346,-500.0,0.00013842,2]
[360750298,1746968952374,-500.0,0.00013842,2]
[360750299,1746968952402,-500.0,0.00013842,2]
[360750300,1746968952427,-500.0,0.00013842,2]
[360750301,1746968952452,-500.0,0.00013842,2]
[360750302,1746968952477,-500.0,0.00013842,2]
[360750303,1746968952503,-500.0,0.00013842,2]
[360750304,1746968952528,-500.0,0.00013842,2]
[360750305,1746968952553,-500.0,0.00013842,2]
[360750306,1746968952580,-500.0,0.00013842,2]
[360750307,1746968952606,-150.38429957,0.00013842,2]
[360750308,1746968961393,-183.56425911,0.00013842,2]
[360750311,1746968977467,-166.05144132,0.00013842,2]
[360750312,1746968977497,-162.98513773,0.00013842,2]
[360750313,1746968990262,-190.7,0.00013843,2]
[360750317,1746969005289,-300.0,0.00013842,2]
[360750318,1746969005314,-90.584626,0.00013842,2]
[360750319,1746969020307,-152.0,0.00013842,2]
[360750320,1746969026198,152.0,0.00028,120]
[360750329,1746969031671,-308.84060142,0.00013842,2]
[360750330,1746969031838,-648.57477258,0.00013842,2]
[360750331,1746969031849,-300.0,0.00013842,2]
[360750332,1746969031859,-20098.38897603,0.00013843,2]
[360750333,1746969031869,-2397.71,0.00013848,2]
[360750334,1746969031878,-102.98619221,0.00014237,2]
[360750335,1746969031888,-164.99,0.00014258,2]
[360750336,1746969031897,-150.0,0.00014271,2]
[360750337,1746969031906,-150.0,0.00014305,2]
[360750338,1746969031916,-150.0,0.00014339,2]
[360750339,1746969031925,-150.0,0.00014373,2]
[360750340,1746969031934,-150.0,0.00014407,2]
[360750341,1746969031944,-150.0,0.00014441,2]
[360750342,1746969031953,-150.0,0.00014475,2]
[360750343,1746969031962,-150.0,0.00014509,2]
[360750344,1746969031972,-150.0,0.00014544,2]
[360750345,1746969031981,-150.0,0.00014578,2]
[360750346,1746969031991,-150.0,0.00014612,2]
[360750347,1746969032000,-150.0,0.00014646,2]
[360750348,1746969032010,-150.0,0.0001468,2]
[360750349,1746969032019,-150.0,0.00014714,2]
[360750350,1746969032028,-150.0,0.00014748,2]
[360750351,1746969032037,-650.56219687,0.00014768,2]
[360750352,1746969032047,-150.0,0.00014782,2]
[360750353,1746969032057,-4222.76814352,0.000148,2]
[360750354,1746969032162,-198.10245197,0.000148,2]
[360750355,1746969032212,-2979.44378567,0.000148,2]
[360750356,1746969032222,-150.0,0.00014816,2]
[360750357,1746969032232,-150.0,0.0001485,2]
[360750359,1746969032242,-150.0,0.00014884,2]
[360750361,1746969032251,-200.45477356,0.00014888,2]
[360750363,1746969032261,-22405.4905222,0.00014889,2]
[360750365,1746969032270,-376.35214622,0.0001489,2]
[360750367,1746969032280,-181.1241624,0.0001489,2]
[360750368,1746969032289,-376.35214622,0.00014891,2]
[360750369,1746969032299,-376.35214622,0.00014892,2]
[360750370,1746969032309,-376.35214622,0.00014893,2]
[360750371,1746969032319,-376.35214622,0.00014894,2]
[360750372,1746969032328,-376.35214622,0.00014896,2]
[360750373,1746969032338,-376.35214622,0.00014897,2]
[360750374,1746969032347,-376.35214622,0.00014898,2]
[360750375,1746969032357,-376.35214622,0.00014899,2]
[360750376,1746969032366,-1000.0,0.00014899,2]
[360750377,1746969032376,-1899.76123901,0.000149,2]
[360750378,1746969032386,-334.73214217,0.000149,2]
[360750379,1746969032395,-1729.57,0.000149,2]
[360750380,1746969032405,-1400.0,0.000149,2]
[360750381,1746969032414,-5800.0,0.000149,2]
[360750382,1746969032424,-153.24649377,0.000149,2]
[360750383,1746969032434,-1969.95977205,0.000149,2]
[360750384,1746969032444,-479.81683475,0.000149,2]
[360750385,1746969032454,-151.0,0.000149,2]
[360750386,1746969032463,-376.35214622,0.000149,2]
[360750387,1746969032474,-556.28,0.00014903,2]
[360750388,1746969032485,-2030.08,0.00014903,2]
[360750389,1746969032497,-150.0,0.00014918,2]
[360750390,1746969032506,-150.0,0.00014952,2]
[360750391,1746969032516,-503.22616847,0.00014973,2]
[360750392,1746969032527,-505.83113436,0.00014973,2]
[360750393,1746969032539,-598.25045734,0.00014973,2]
[360750394,1746969032549,-500.0,0.00014973,2]
[360750395,1746969032739,-186.76248542,0.00014973,2]
[360750396,1746969032755,-500.0,0.00014973,2]
[360750397,1746969032764,-500.0,0.00014973,2]
[360750398,1746969032773,-500.0,0.00014973,2]
[360750399,1746969032783,-500.0,0.00014973,2]
[360750400,1746969032793,-500.0,0.00014973,2]
[360750401,1746969032802,-500.0,0.00014973,2]
[360750402,1746969032813,-500.0,0.00014973,2]
[360750403,1746969032823,-500.0,0.00014973,2]
[360750404,1746969032832,-503.37002105,0.00014973,2]
[360750405,1746969032843,-500.0,0.00014973,2]
[360750406,1746969032854,-280.69303036,0.00014986,2]
[360750407,1746969032863,-66766.45645484,0.00014989,2]
[360750408,1746969032875,-106913.17934101,0.00014989,2]
[360750409,1746969035265,-263.22509589,0.00014989,2]
[360750414,1746969037759,-383.8534678,0.000149,2]
[360750415,1746969037768,-984.97988602,0.000149,2]
[360750416,1746969037777,-56256.73851356,0.00014989,2]